Cogmind - Beta 16 @@@ ROGUE MODE // 2025.10.25 @ 10:11:10 Player: KeKe Result: Destroyed by X-77 Beamer with Gatling Laser Performance ------------- Evolutions (5) 2500 Regions Visited (10) 2000 Robots Destroyed (85) 425 Value Destroyed (3948) 3948 Prototype IDs (18) 360 Alien Tech Used (0) 0 Bonus (4117) 4117 TOTAL SCORE: 13350 Bonus ------- High Alert Combat Kills 722 Follower Combat Kills 1838 Entered Garrisons 400 Used RIF Installer 500 Registered with UFD 300 Met Optimus in HQ 500 Friendly Fire -143 Cogmind --------- Core Integrity 0/1000 Matter 300/300 Energy 99/100 System Corruption 16% Temperature Cool (30) Movement Core (50) Location -5/Garrison Parts ------- > --- POWER (1) -------- (None) > --- PROPULSION (6) --- (None) > --- UTILITY (8) ------ (None) > --- WEAPON (2) ------- (None) > --- INVENTORY (5) ---- Neutrino Core Matter Compressor (250) Peak State ------------ > --- POWER ------------ Improved Ion Engine > --- PROPULSION ------- Armored Huge Wheel Armored Huge Wheel Flightbrick > --- UTILITY ---------- Scrap Suit Large Storage Unit Sensor Array Advanced Signal Interpreter Terrain Scanner Scrap Shield Tower Shield Hacking Suite > --- WEAPON ----------- Flak Cannon Flak Cannon Flak Cannon Makeshift Spear > --- INVENTORY -------- Scrap Suit Matter Compressor A0-MCA's Component Scanner Scrapoid Pod [Rating: 113] Favorites ----------- Power Improved Ion Engine Engine Improved Ion Engine Power Core Reinforced Fission Core Reactor Light Antimatter Reactor Propulsion Compact Wheel Treads Armored Heavy Treads Leg Carbon-fiber Leg Wheel Compact Wheel Hover Unit Cooled Airjet Flight Unit Flightbrick Utility Advanced Heat Sink Device Advanced Heat Sink Storage Small Storage Unit Processor Improved Targeting Computer Hackware Hacking Suite Protection Medium Regenerative Plating Weapon Flak Cannon Energy Gun Heavy Laser Energy Cannon Nova Cannon Ballistic Gun Heavy Assault Rifle Ballistic Cannon Flak Cannon Launcher Precision Rocket Launcher Slashing Weapon Ripper Piercing Weapon Makeshift Spear Build | -11 -10 -10 -9 -9 -6 -6 -5 -5 -5 -5 ------- Run | Yrd Mat Sub Rec Scr Fac Ext Fac Gar Fac Gar Slots Evolved 10 | . . . . . 8 . 2 . . . Power . | . . . . . . . . . . . Propulsion 4 | . . . . . 4 . . . . . Utility 6 | . . . . . 4 . 2 . . . Weapon . | . . . . . . . . . . . Parts Attached 121 | 2 4 7 2 8 24 18 4 29 1 22 Power 12 | . . 1 1 . 2 3 . 5 . . Engine 6 | . . 1 1 . 2 1 . 1 . . Core 3 | . . . . . . . . 3 . . Reactor 3 | . . . . . . 2 . 1 . . Propulsion 34 | 2 . 1 . 1 5 6 2 9 . 8 Treads 3 | . . . . . . . . 3 . . Leg 13 | . . . . . . 4 2 1 . 6 Wheel 10 | 2 . 1 . . 4 2 . 1 . . Hover 1 | . . . . . 1 . . . . . Flight 7 | . . . . 1 . . . 4 . 2 Utility 45 | . 2 2 . 5 11 5 1 9 1 9 Device 25 | . 1 1 . 1 5 1 1 7 1 7 Storage 1 | . . . . 1 . . . . . . Processor 5 | . . . . 1 3 1 . . . . Hackware 2 | . . . . . 1 1 . . . . Protection 12 | . 1 1 . 2 2 2 . 2 . 2 Artifact . | . . . . . . . . . . . Weapon 30 | . 2 3 1 2 6 4 1 6 . 5 Energy Gun 6 | . . . . . 2 1 . 1 . 2 Energy Cannon 6 | . . . . . 1 1 . 2 . 2 Ballistic Gun 9 | . . 2 1 . 1 1 1 2 . 1 Ballistic Cannon 6 | . 2 . . 2 1 1 . . . . Launcher 1 | . . . . . 1 . . . . . Special Weapon . | . . . . . . . . . . . Impact Weapon . | . . . . . . . . . . . Slashing Weapon 1 | . . . . . . . . 1 . . Piercing Weapon 1 | . . 1 . . . . . . . . Special Melee Weapon . | . . . . . . . . . . . Unidentified Prototypes 5 | . . 1 . . 2 1 1 . . . Parts Lost 57 | . . 1 . . 10 1 . 21 . 24 Power 8 | . . 1 . . 2 . . 4 . 1 Propulsion 11 | . . . . . 1 . . 3 . 7 Utility 24 | . . . . . 5 1 . 8 . 10 Weapon 14 | . . . . . 2 . . 6 . 6 Highest Loss Streak 16 | . . 1 . . 5 1 . 10 . 16 To Critical Strikes . | . . . . . . . . . . . Average Backups 4 | 4 6 7 3 4 6 2 2 3 5 4 Power . | 1 1 . . . . . . . 1 1 Propulsion . | 2 1 . 1 . . . . 2 2 1 Utility 2 | . 2 3 2 3 4 1 . . . . Weapon 1 | 1 . 2 . . 1 1 2 1 2 1 Tool/Special . | . . . . . . . . . . . Unused Backups 54 | . . 8 . 16 23 3 . 1 . 3 Power 10 | . . 2 . 2 3 1 . 1 . 1 Propulsion 4 | . . . . 2 2 . . . . . Utility 28 | . . 4 . 8 13 2 . . . 1 Weapon 11 | . . 1 . 4 5 . . . . 1 Tool/Special 1 | . . 1 . . . . . . . . Average Slot Usage (%) 70 | . 98 98 98 69 62 53 81 55 67 79 Engine 5 | . 14 12 12 7 4 1 . . . . Leg 3 | . . . . . . 6 23 8 . 16 Wheel 10 | . 28 28 28 9 9 1 . 4 5 4 Flight 1 | . . . . 3 . . . 1 . . Device 9 | . 3 11 14 3 10 6 10 10 20 29 Storage 5 | . 14 14 14 7 4 . . . . . Processor 2 | . . . . 2 10 11 5 . . . Hackware 1 | . . . . . 5 10 11 . . . Protection 6 | . 8 2 . 7 3 2 11 8 11 8 Energy Gun 1 | . 10 . . . . 2 . 2 . 4 Energy Cannon 1 | . . . . . . 1 4 5 11 4 Ballistic Gun 4 | . 10 10 14 4 1 . 1 . . 1 Ballistic Cannon 6 | . 7 12 . 10 5 1 2 . . . Piercing Weapon 3 | . . 4 14 7 . . . . . . Peak Build Rating 113 | 6 7 18 20 89 113 77 89 101 107 107 Average Rating 55 | 5 6 11 19 63 56 46 88 76 104 78 On Entrance 50 | 6 6 7 18 20 89 34 77 89 101 107 Avg Prop Armor Cover (%) 5 | . . . . . 6 6 9 6 2 3 Naked Turns 3 | . . . . . . . . . . 3 Heaviest Build 109 | 13 19 19 18 107 109 54 56 71 72 72 Greatest Support 135 | 32 32 32 26 26 68 135 135 135 120 120 Greatest Overweight (x) 12 | . . . . 4 3 1 1 12 3 2 Average Overweight (x) . | . . . . 1 . . . . . . Largest Inventory Capacity 15 | 8 8 8 8 15 15 5 5 5 5 5 Average Capacity 8 | 8 8 8 8 12 12 5 5 5 5 5 Most Carried 15 | 7 8 8 8 13 15 5 4 5 5 5 Average Carried 6 | 4 6 7 8 7 8 2 2 3 5 4 Final Capacity 15 | 8 8 8 8 15 5 5 5 5 5 5 Final Carried 13 | 3 8 8 8 13 5 5 4 5 5 2 Scrap Suit Usage (%) 2 | . . . . 7 3 . . . . . Class Distribution -------------------- 41% | Mutant 32% | Scavenger-Mutant 21% | Tank Dominant Class ---------------- Mutant | -10/Materials Mutant | -10/Subcaves Mutant | -9/Recycling Tank | -9/Scraptown Mutant | -6/Factory Scavenger-Mutant | -6/Extension Scavenger-Mutant | -5/Factory Scavenger-Mutant | -5/Garrison Scavenger-Mutant | -5/Factory Scavenger-Mutant | -5/Garrison Resources | -11 -10 -10 -9 -9 -6 -6 -5 -5 -5 -5 ----------- Run | Yrd Mat Sub Rec Scr Fac Ext Fac Gar Fac Gar Matter Collected 3780 | 234 95 376 37 85 714 1071 112 753 17 286 Remotely . | . . . . . . . . . . . Salvage Created 3832 | 128 302 243 . . 328 264 192 1311 158 906 Parts 180 | 12 10 16 . . 22 7 8 53 7 45 Haulers Intercepted 1 | . 1 . . . . . . . . . Recyclers Shooed 6 | . . . 1 . 3 2 . . . . Parts Field Recycled . | . . . . . . . . . . . Retrieved Matter . | . . . . . . . . . . . Parts Self-Destructed 10 | . . 10 . . . . . . . . Prevented . | . . . . . . . . . . . Parts Restored . | . . . . . . . . . . . Kills | -11 -10 -10 -9 -9 -6 -6 -5 -5 -5 -5 ------- Run | Yrd Mat Sub Rec Scr Fac Ext Fac Gar Fac Gar Combat Hostiles Destroyed 75 | . 5 8 . . 10 1 3 27 3 18 Melee 3 | . . . . . . . . 3 . . Guns 35 | . 3 1 . . 2 . 3 16 . 10 Cannons 30 | . 2 7 . . 8 1 . 4 2 6 AOE 1 | . . . . . . . . . 1 . Classes Destroyed 14 | 2 2 4 . . 3 . . 2 . 1 Builder 2 | . . . . . 1 1 . . . . Tunneler 4 | 3 . . . . 1 . . . . . Hauler 1 | . 1 . . . . . . . . . Recycler 3 | 1 1 . . . . 1 . . . . Swarmer 21 | . . 3 . . 2 . . 10 . 6 Grunt 35 | . 5 . . . 3 1 3 13 3 7 Brawler 1 | . . . . . . . . 1 . . Sentry 3 | . . 1 . . 1 . . 1 . . Specialist 2 | . . . . . . . . 2 . . Hunter 4 | . . . . . 3 . . . . 1 Programmer 4 | . . . . . 1 . . . . 3 Behemoth 1 | . . . . . . . . . . 1 Artisan 1 | . . 1 . . . . . . . . Subdweller 4 | . . 4 . . . . . . . . Best Kill Streak 6 | 3 3 2 . . 3 1 3 6 3 4 Combat Bots Only 6 | . 2 2 . . 2 1 3 6 3 4 Max Kills in Single Turn 2 | 1 1 2 . . 2 1 1 2 1 1 Gunslinging 1 | . . . . . . . . 1 . . Exploded 1 | . . . . . . . . . 1 . Melee 1 | . . . . . . . . 1 . . Uniques/NPCs Destroyed . | . . . . . . . . . . . Combat | -11 -10 -10 -9 -9 -6 -6 -5 -5 -5 -5 -------- Run | Yrd Mat Sub Rec Scr Fac Ext Fac Gar Fac Gar Hostile Shots Fired 1097 | . 13 40 . . 262 83 8 356 20 315 Missed 346 | . 4 19 . . 80 41 4 95 9 94 Hits 751 | . 9 21 . . 182 42 4 261 11 221 Melee 7 | . . . . . . . . 7 . . Projectile 744 | . 9 21 . . 182 42 4 254 11 221 Critical Strikes 32 | . . 1 . . 4 . . 17 1 9 Part Disruptions 2 | . . . . . 1 . . . . 1 Damage Taken 13461 | . 99 363 . . 2768 653 110 5111 277 4080 Core 1729 | . 12 83 . . 426 201 . 389 15 603 Absorbed by Shields 5 | . . . . . . 5 . . . . Ignored by Resistances 129 | . . . . . . . . 15 45 69 Regen/Repaired (Parts) 1324 | . 3 . . . . 23 42 891 27 338 Core Remaining (%) 62 | 100 . . . 62 . 26 . . . . Volleys Fired 355 | 14 17 22 3 . 52 38 10 119 6 74 Largest 3 | 2 2 2 1 . 3 2 2 2 2 2 Hottest 218 | 70 70 60 23 . 138 165 165 218 218 218 Shots Fired 588 | 28 34 44 3 . 103 49 9 171 12 135 Gun 343 | 28 26 7 3 . 28 31 7 128 . 85 Cannon 245 | . 8 37 . . 75 18 2 43 12 50 Launcher . | . . . . . . . . . . . Special . | . . . . . . . . . . . Kinetic 258 | 14 21 44 3 . 75 12 9 68 . 12 Thermal 303 | 14 13 . . . 28 10 . 103 12 123 Explosive . | . . . . . . . . . . . Electromagnetic 27 | . . . . . . 27 . . . . Robot Hit Streak 20 | 7 8 11 5 . 11 20 2 13 12 13 Robot Miss Streak 7 | 2 2 6 . . 7 7 3 5 2 5 Penetration Max 1 | . . . . . . 1 . 1 . . Secondary Targets 8 | . . . . . . . . 6 . 2 Max Gunslinging Chain 1 | . . . . . . . . 1 . 1 Shots Hit Robots 385 | 16 23 28 3 . 83 33 5 114 8 72 Core Hits 207 | 6 12 12 1 . 82 14 3 45 6 26 Critical Kills 6 | . . . . . . . . 4 . 2 Critical Parts Destroyed 6 | . . . . . . 3 1 2 . . Critical Strikes 23 | 1 2 4 . . . 4 1 9 . 2 Burn 5 | 1 2 . . . . . . 2 . . Meltdown 4 | . . . . . . . . 2 . 2 Destroy 9 | . . . . . . 4 1 4 . . Blast 3 | . . 3 . . . . . . . . Sever 1 | . . . . . . . . 1 . . Impale 1 | . . 1 . . . . . . . . Melee Attacks 29 | . . 16 . . . . . 13 . . Impact . | . . . . . . . . . . . Slashing 13 | . . . . . . . . 13 . . Piercing 16 | . . 16 . . . . . . . . Sneak Attacks 2 | . . 2 . . . . . . . . Combat Hostiles . | . . . . . . . . . . . Follow-up Attacks . | . . . . . . . . . . . Damage Inflicted 9600 | 171 300 535 50 . 1657 727 163 2964 395 2638 Guns 4366 | 171 179 40 50 . 417 385 127 1758 . 1239 Cannons 4653 | . 121 390 . . 1240 245 36 924 298 1399 Explosions 194 | . . . . . . 97 . . 97 . Melee 387 | . . 105 . . . . . 282 . . Ramming . | . . . . . . . . . . . Kinetic 3714 | 46 187 430 50 . 1259 245 163 1152 . 182 Thermal 5222 | 125 113 . . . 398 205 . 1530 395 2456 Explosive . | . . . . . . . . . . . Electromagnetic 277 | . . . . . . 277 . . . . Impact . | . . . . . . . . . . . Slashing 282 | . . . . . . . . 282 . . Piercing 105 | . . 105 . . . . . . . . Highest Corruption 16 | . 2 2 2 . 4 4 . 8 8 16 Average Corruption 5 | . 2 2 2 . 3 4 . 7 8 15 Corruption Purged . | . . . . . . . . . . . Corruption Blocked . | . . . . . . . . . . . Effects 193 | . 4 26 5 . 13 19 . 78 6 42 Message Errors 52 | . 2 7 . . 3 2 . 21 1 16 Matter Fused 41 | . 1 6 2 . 4 . . 21 . 7 Heat Flow Errors 22 | . 1 2 3 . . 5 . 8 1 2 Energy Discharges 19 | . . 3 . . 3 2 . 7 . 4 Parts Rejected 4 | . . . . . 1 . . 2 1 . Parts Fused 1 | . . . . . . 1 . . . . Data Loss (minor) 24 | . . 6 . . 1 5 . 8 1 3 Data Loss (major) 7 | . . 2 . . . 3 . 1 . 1 Misfires 7 | . . . . . . 1 . 4 1 1 Alerts 2 | . . . . . . . . 2 . . Misdirections 1 | . . . . . . . . . . 1 Weapon Failures 13 | . . . . . 1 . . 4 1 7 Overload Shots . | . . . . . . . . . . . Overflow Damage 203 | . . 85 . . . 15 . 23 . 80 Projectiles 109 | . . . . . . 6 . 23 . 80 Explosions 9 | . . . . . . 9 . . . . Melee 85 | . . 85 . . . . . . . . Knockbacks 30 | . . 2 . . 27 1 . . . . Impact . | . . . . . . . . . . . Kinetic 28 | . . 2 . . 25 1 . . . . Secondary 2 | . . . . . 2 . . . . . Self-Inflicted Damage . | . . . . . . . . . . . Shots . | . . . . . . . . . . . Rammed . | . . . . . . . . . . . Targets Rammed . | . . . . . . . . . . . Kicked . | . . . . . . . . . . . Crushed . | . . . . . . . . . . . Highest Temperature 349 | 170 179 196 241 . 254 321 70 349 123 268 Average Temperature 97 | 70 63 102 110 . 87 129 43 100 27 128 Received Heat Transfer 4132 | . 54 30 . . 684 135 36 1937 93 1163 Effects 4 | . . . 1 . 3 . . . . . Energy Bleed 1 | . . . 1 . . . . . . . Interference 3 | . . . . . 3 . . . . . Siege Activations . | . . . . . . . . . . . Martial Activations . | . . . . . . . . . . . Shielding Activations . | . . . . . . . . . . . Robots Disrupted 1 | . . . . . . 1 . . . . Combat Hostiles . | . . . . . . . . . . . Robots Corrupted . | . . . . . . . . . . . Combat Hostiles . | . . . . . . . . . . . Parts Fried . | . . . . . . . . . . . Impact Corruptions . | . . . . . . . . . . . Robots Melted 6 | . . . . . . . . 4 . 2 Combat Hostiles 6 | . . . . . . . . 4 . 2 Parts Melted 18 | . 1 . . . . 2 . 8 . 7 Heat Transferred 7257 | 444 481 . . . 718 300 . 2396 346 2572 Parts Sabotaged . | . . . . . . . . . . . Parts Stolen . | . . . . . . . . . . . Parts Stripped . | . . . . . . . . . . . Power Chain Reactions 2 | . . . . . . 2 . . . . Alert | -11 -10 -10 -9 -9 -6 -6 -5 -5 -5 -5 ------- Run | Yrd Mat Sub Rec Scr Fac Ext Fac Gar Fac Gar Maximum Alert Level 4 | . . . . . 2 2 1 4 3 3 Low Security (%) 19 | 100 100 . 100 . 29 23 19 3 . . Level 1 34 | . . . . . 39 57 80 41 . . Level 2 15 | . . . . . 31 19 . 14 . 12 Level 3 21 | . . . . . . . . 18 100 87 Level 4 8 | . . . . . . . . 21 . . Level 5 . | . . . . . . . . . . . High Security . | . . . . . . . . . . . Max Security . | . . . . . . . . . . . Peak Influence 1558 | 10 62 . 62 . 590 542 260 1558 916 1033 Initial 817 | . . . 10 . . 282 228 168 817 604 Average 507 | 1 19 . 21 . 302 287 221 676 872 867 Influence Increases 4906 | 20 132 284 72 . 1084 822 132 1660 136 564 Destroy 0b10 Robot/C 2400 | . 100 180 60 . 520 360 80 680 60 360 Destroy 0b10 Robot/NC 85 | 20 10 . . . 25 25 . . . 5 Destroy Leader 284 | . 22 . . . 110 62 10 30 10 40 Allied During Kill 311 | . . 44 12 . 71 135 16 33 . . Successful Hack 58 | . . . . . 22 6 . 16 . 14 Disable Machine 150 | . . . . . 45 75 . 15 15 . Anti-Garrison Action 700 | . . . . . . . . 700 . . Destroy Structure 303 | . . . . . 6 69 26 96 36 70 Lose Combat Pursuer 615 | . . 60 . . 285 90 . 90 15 75 Influence Decreases 3978 | 20 90 303 95 . 506 932 360 342 831 499 Entered New Map 1642 | . . 21 13 . . 296 240 72 741 259 Time Decay 1386 | 20 90 252 62 . 346 446 80 . 90 . Lost Part 570 | . . 10 . . 100 10 . 210 . 240 Lost Ally 380 | . . 20 20 . 60 180 40 60 . . Squads Dispatched 16 | . 1 . . . 12 2 1 . . . Investigation 10 | . 1 . . . 7 2 . . . . Extermination 2 | . . . . . 2 . . . . . Reinforcement 3 | . . . . . 2 . 1 . . . Assault 1 | . . . . . 1 . . . . . Garrison . | . . . . . . . . . . . Intercept . | . . . . . . . . . . . Searches Triggered . | . . . . . . . . . . . Construction Impeded 1 | . . . . . 1 . . . . . Haulers Reinforced 1 | . . . . . . . 1 . . . Active Scanning Responses . | . . . . . . . . . . . Cargo Convoy Interrupts 1 | . . . . . 1 . . . . . Stealth | -11 -10 -10 -9 -9 -6 -6 -5 -5 -5 -5 --------- Run | Yrd Mat Sub Rec Scr Fac Ext Fac Gar Fac Gar Distress Signals 9 | . 1 . . . 4 1 . . . 3 Communications Jammed . | . . . . . . . . . . . Distress Signals . | . . . . . . . . . . . Times Spotted 179 | . 7 17 1 . 47 22 4 36 3 42 Peak Tracking Total 19 | . 3 6 . . 10 4 3 8 3 19 Tactical Retreats 23 | . . 2 . . 7 4 . 5 1 4 Traps | -11 -10 -10 -9 -9 -6 -6 -5 -5 -5 -5 ------- Run | Yrd Mat Sub Rec Scr Fac Ext Fac Gar Fac Gar Traps Triggered 10 | . 1 . . . 2 4 . 1 . 2 Indirectly . | . . . . . . . . . . . Trap Hack Attempts . | . . . . . . . . . . . Triggered . | . . . . . . . . . . . Disarmed . | . . . . . . . . . . . Reprogrammed . | . . . . . . . . . . . Reused . | . . . . . . . . . . . Traps Extracted . | . . . . . . . . . . . Installed . | . . . . . . . . . . . Triggered . | . . . . . . . . . . . Machines | -11 -10 -10 -9 -9 -6 -6 -5 -5 -5 -5 ---------- Run | Yrd Mat Sub Rec Scr Fac Ext Fac Gar Fac Gar Machines Disabled 16 | . . 1 . . 3 7 . 3 1 1 Max in Single Turn 1 | . . 1 . . 1 1 . 1 1 1 Garrison Relay 3 | . . . . . . . . 3 . . Machines Repaired . | . . . . . . . . . . . Machines Dismantled . | . . . . . . . . . . . Machines Sabotaged . | . . . . . . . . . . . Overloaded Fab Kills . | . . . . . . . . . . . Hacking | -11 -10 -10 -9 -9 -6 -6 -5 -5 -5 -5 --------- Run | Yrd Mat Sub Rec Scr Fac Ext Fac Gar Fac Gar Machines Accessed 39 | . 1 4 3 7 10 8 1 1 3 1 Terminals 15 | . . . 1 . 4 6 . 1 2 1 Fabricators . | . . . . . . . . . . . Repair Stations 1 | . 1 . . . . . . . . . Recycling Units 9 | . . . 2 . 5 2 . . . . Scanalyzers 1 | . . . . . 1 . . . . . Garrison Access 2 | . . . . . . . 1 . 1 . Total Hacks 123 | . 1 16 5 59 19 10 2 1 8 2 Successful 102 | . 1 16 3 59 10 8 1 1 2 1 Failed 21 | . . . 2 . 9 2 1 . 6 1 Catastrophic 2 | . . . . . 2 . . . . . Database Lockouts . | . . . . . . . . . . . Manual 29 | . 1 . 2 . 16 4 . . 6 . Terminals 28 | . . . 2 . 9 8 . 1 6 2 Fabricators . | . . . . . . . . . . . Repair Stations 1 | . 1 . . . . . . . . . Recycling Units 13 | . . . 3 . 8 2 . . . . Scanalyzers 2 | . . . . . 2 . . . . . Garrison Access 4 | . . . . . . . 2 . 2 . Terminal Hacks 83 | . . 16 . 59 1 5 . 1 . 1 Record 72 | . . 13 . 59 . . . . . . Open Door 7 | . . 1 . . 1 5 . . . . Emergency Access Points 1 | . . . . . . . . . . 1 Security Stations 1 | . . . . . . . . 1 . . Proto ID Catalog 1 | . . 1 . . . . . . . . Release Object 1 | . . 1 . . . . . . . . Fabricator Hacks . | . . . . . . . . . . . Repair Station Hacks . | . . . . . . . . . . . Recycling Unit Hacks 1 | . . . 1 . . . . . . . Report Inventory 1 | . . . 1 . . . . . . . Scanalyzer 1 | . . . . . 1 . . . . . Retrieve Study 1 | . . . . . 1 . . . . . Garrison Access Hacks 3 | . . . . . . . 1 . 2 . Unlock Access 2 | . . . . . . . 1 . 1 . Coupler Status 1 | . . . . . . . . . 1 . Unauthorized Hacks 14 | . 1 . 2 . 8 3 . . . . Terminals 4 | . . . . . 3 1 . . . . Assimilate 1 | . . . . . 1 . . . . . Botnet 3 | . . . . . 2 1 . . . . Fabricators . | . . . . . . . . . . . Repair Stations 1 | . 1 . . . . . . . . . Patch 1 | . 1 . . . . . . . . . Recycling Units 9 | . . . 2 . 5 2 . . . . Monitor 1 | . . . 1 . . . . . . . Reject 1 | . . . 1 . . . . . . . Fedlink 6 | . . . . . 5 1 . . . . Scraphulk 1 | . . . . . . 1 . . . . Scanalyzers . | . . . . . . . . . . . Garrison Access . | . . . . . . . . . . . Data Cores Recovered 1 | . . . . . . 1 . . . . Used . | . . . . . . . . . . . Hacking Detections 15 | . . . 1 . 7 2 1 . 3 1 Full Trace Events 1 | . . . . . 1 . . . . . Feedback Events . | . . . . . . . . . . . Feedback Blocked . | . . . . . . . . . . . Robot Schematics Acquired . | . . . . . . . . . . . Robots Built . | . . . . . . . . . . . Authchips . | . . . . . . . . . . . Time . | . . . . . . . . . . . Total Robot Build Rating . | . . . . . . . . . . . Part Schematics Acquired . | . . . . . . . . . . . Parts Built . | . . . . . . . . . . . Authchips . | . . . . . . . . . . . Time . | . . . . . . . . . . . Total Part Build Rating . | . . . . . . . . . . . Part Studies Acquired 1 | . . . . . 1 . . . . . Parts Repaired . | . . . . . . . . . . . Time . | . . . . . . . . . . . Parts Recycled . | . . . . . . . . . . . Recycled Matter . | . . . . . . . . . . . Retrieved Matter . | . . . . . . . . . . . Retrieved Components . | . . . . . . . . . . . Parts Scanalyzed . | . . . . . . . . . . . Part Schematics Acquired . | . . . . . . . . . . . Parts Damaged . | . . . . . . . . . . . Bothacking | -11 -10 -10 -9 -9 -6 -6 -5 -5 -5 -5 ------------ Run | Yrd Mat Sub Rec Scr Fac Ext Fac Gar Fac Gar Used RIF Installer 1 | . . . . . . . . 1 . . Robots Hacked . | . . . . . . . . . . . Non-combat . | . . . . . . . . . . . Combat . | . . . . . . . . . . . Robot Hacks Applied . | . . . . . . . . . . . Relay Couplers Released 11 | . . . . . . . . 11 . . Machine Destruction 11 | . . . . . . . . 11 . . Fabnet Peak Effective % . | . . . . . . . . . . . Robots Rewired 2 | . . . . . . . . 2 . . Allies Hacked . | . . . . . . . . . . . Hacks Repelled . | . . . . . . . . . . . Allies | -11 -10 -10 -9 -9 -6 -6 -5 -5 -5 -5 -------- Run | Yrd Mat Sub Rec Scr Fac Ext Fac Gar Fac Gar Total Allies 26 | . . 9 . 1 2 12 . 2 . . Largest Group 10 | . . 6 4 3 3 10 3 2 . . Highest-Rated Group 495 | . . 117 76 131 131 495 141 233 . . Highest-Rated Ally 159 | . . 22 19 93 93 159 47 148 . . Total Orders . | . . . . . . . . . . . Ally Attacks 289 | . . 33 7 . 71 128 17 33 . . Total Damage 7960 | . . 594 168 . 2331 3270 318 1279 . . Kills 59 | . . 8 4 . 19 20 1 7 . . Allies Corrupted . | . . . . . . . . . . . Allies Melted 2 | . . . . . . 2 . . . . Intel | -11 -10 -10 -9 -9 -6 -6 -5 -5 -5 -5 ------- Run | Yrd Mat Sub Rec Scr Fac Ext Fac Gar Fac Gar Active Infowar (turns) 1547 | . 77 72 . . 1013 260 . . 121 4 Sensors 1367 | . . . . . 982 260 . . 121 4 Terrain 320 | . . . . . 320 . . . . . Seismic 149 | . 77 72 . . . . . . . . Robot Analysis Total . | . . . . . . . . . . . Derelict Logs Recovered 4 | . . 1 . 3 . . . . . . Drone Launches . | . . . . . . . . . . . Drone Recoveries . | . . . . . . . . . . . Exploration | -11 -10 -10 -9 -9 -6 -6 -5 -5 -5 -5 ------------- Run | Yrd Mat Sub Rec Scr Fac Ext Fac Gar Fac Gar Turns Passed 12654 | 92 263 1932 249 4124 1067 1116 162 2662 188 799 Spaces Moved 8335 | 45 190 1849 245 2805 790 796 90 929 97 499 Core 21 | . . . . . . . . 15 . 6 Treads 499 | . . . . . . . . 381 96 22 Legs 992 | 17 . . . . . 200 90 389 . 296 Wheels 4465 | 28 190 1849 245 1421 570 25 . 125 1 11 Hover 791 | . . . . . 220 571 . . . . Flight 1567 | . . . . 1384 . . . 19 . 164 Fastest Speed 36 | 100 100 90 90 90 46 46 125 36 100 42 Average Speed 117 | 107 100 91 90 141 99 89 145 151 169 96 Slowest Speed 650 | 120 100 100 90 200 230 140 190 650 170 190 Overloaded Moves 243 | . . . . . 119 124 . . . . Propulsion Burnouts . | . . . . . . . . . . . Robots Hopped 6 | . . . . . . 3 . . . 3 Potential Cave-ins . | . . . . . . . . . . . Cave-ins Triggered . | . . . . . . . . . . . Exploration Rate (%) 43 | 3 42 93 38 94 20 54 3 74 2 50 Regions Visited 10 Branch Regions 4 Pre-discovered Areas 8 | . . 2 . 5 1 . . . . . Known Exits Taken 4 | . . . . . 1 1 1 . 1 . Unknown Exits Taken 5 | 1 1 1 1 1 . . . . . . Scrap Searched 14 | . . 6 . 8 . . . . . . Spaces Dug 6 | . . 5 . . 1 . . . . . Terrain Destroyed 71 | . . 5 . . 2 26 2 10 21 5 Melee 5 | . . 5 . . . . . . . . Projectile 35 | . . . . . 2 13 2 10 3 5 AOE 31 | . . . . . . 13 . . 18 . Terrain Rammed . | . . . . . . . . . . . Walls Destroyed . | . . . . . . . . . . . Machines Disabled . | . . . . . . . . . . . Actions | -11 -10 -10 -9 -9 -6 -6 -5 -5 -5 -5 --------- Run | Yrd Mat Sub Rec Scr Fac Ext Fac Gar Fac Gar Total 10585 | 65 231 2019 270 2977 971 1156 111 2003 111 671 Wait 1397 | . 12 90 20 103 60 226 2 833 2 49 Move 8314 | 44 189 1848 244 2804 789 789 89 928 97 493 Hop 6 | . . . . . . 3 . . . 3 Pick Up 98 | 1 5 10 . 32 20 12 1 11 2 4 Fast Attach 73 | . 4 1 1 6 14 11 . 20 2 14 Attach 41 | 2 . . . 2 9 5 2 16 . 5 Detach 13 | . 1 . . 1 3 1 . 7 . . Swap 47 | . . 16 1 . 6 5 5 6 . 8 Drop 116 | 4 3 16 1 29 18 15 2 13 2 13 Fire 355 | 14 17 22 3 . 52 38 10 119 6 74 Melee 29 | . . 16 . . . . . 13 . . Ram . | . . . . . . . . . . . Kick . | . . . . . . . . . . . Crush . | . . . . . . . . . . . Escape Stasis 59 | . . . . . . 51 . . . 8 Rewire 37 | . . . . . . . . 37 . . Trap . | . . . . . . . . . . . Miscellaneous . | . . . . . . . . . . . Route ------- -11/Scrapyard -10/Materials (discovered 2 exits: [*Mat] / *Sub) -10/Subcaves (discovered 3 exits: [*Mat x2] / *Rec) -9/Recycling (discovered 2 exits: [*Fac] / *Scr) -9/Scraptown (discovered 2 exits: *Fac x2) -6/Factory (discovered 3 exits: Fac / *Ext x2) -6/Extension -5/Factory -5/Garrison (discovered 3 exits: *Fac x3) -5/Factory -5/Garrison (discovered 1 exit: [*Fac]) History --------- Turn | Location | Event 1 | -11/Scrapyard | Discovered new exit (range 3) 93 | -11/Scrapyard | Entered Materials 264 | -10/Materials | Discovered new exit (range 10) 310 | -10/Materials | Build established: Mutant 349 | -10/Materials | Discovered new exit (range 7) 356 | -10/Materials | Entered Subcaves 364 | -10/Subcaves | Discovered new exit (range 2) 724 | -10/Subcaves | Visited triangular shrine 730 | -10/Subcaves | Found Prototype Device 731 | -10/Subcaves | Identified V3-11A's Pendant 736 | -10/Subcaves | Befriended Subdweller 765 | -10/Subcaves | Shifting Twisted Machinery released Mak. Spear 828 | -10/Subcaves | Shifting Twisted Machinery released Flamer 846 | -10/Subcaves | Befriended Subdweller 906 | -10/Subcaves | A Subdweller sparked back to life 906 | -10/Subcaves | A Subdweller sparked back to life 906 | -10/Subcaves | A Subdweller sparked back to life 908 | -10/Subcaves | Discovered new exit (range 10) 911 | -10/Subcaves | Befriended Subdweller 911 | -10/Subcaves | Befriended Subdweller 911 | -10/Subcaves | Befriended Subdweller 960 | -10/Subcaves | Visited Clippyterm 963 | -10/Subcaves | Learned location of Deep Caves (-6) 986 | -10/Subcaves | Befriended Subdweller 991 | -10/Subcaves | Befriended Subdweller 1293 | -10/Subcaves | Discovered new exit (range 16) 1426 | -10/Subcaves | Shifting Twisted Machinery released Sub. Monowheel 1431 | -10/Subcaves | Ambushed by Subdwellers from Twisted Machinery 1431 | -10/Subcaves | Befriended Subdweller 1431 | -10/Subcaves | Befriended Subdweller 1475 | -10/Subcaves | Learned Materials security intel 1513 | -10/Subcaves | Learned location of Zion (-6) 1513 | -10/Subcaves | Met a Zionite searching for "candidates" 1533 | -10/Subcaves | A swath of the cavern ceiling suddenly collapsed 1626 | -10/Subcaves | A swath of the cavern ceiling suddenly collapsed 1928 | -10/Subcaves | Visited 4L-MR0's lab 1940 | -10/Subcaves | Found Tower Shield 2216 | -10/Subcaves | Found Flightbrick 2288 | -10/Subcaves | Entered Recycling 2288 | -9/Recycling | Accompanied by 4 allies 2427 | -9/Recycling | Discovered new exit (range 5) 2453 | -9/Recycling | Scanned before Scraplab entrance 2477 | -9/Recycling | Entered Scraplab 2485 | -9/Recycling | Discovered new exit (range 2) 2537 | -9/Recycling | Entered Scraptown 2537 | -9/Scraptown | Accompanied by 2 allies 2537 | -9/Scraptown | System corruption cleaned by C-Scrubber 2640 | -9/Scraptown | Delivered V3-11A's Pendant to T0-NE2 in exchange for information 2843 | -9/Scraptown | Scanned Subdweller tech in exchange for log data 2845 | -9/Scraptown | Learned Research machine intel 2846 | -9/Scraptown | Learned Factory garrison access intel 2847 | -9/Scraptown | Learned location of 1 exit from Research 2907 | -9/Scraptown | Discovered new exit (range 3) 2986 | -9/Scraptown | Visited Cyclists 3014 | -9/Scraptown | Visited SPCMW 3062 | -9/Scraptown | Visited IN-MT5's Study 3205 | -9/Scraptown | Visited CPS Storage 3241 | -9/Scraptown | Visited Bundlers 3301 | -9/Scraptown | Visited Fellowship of the Rings 3322 | -9/Scraptown | Visited Assassins FH 3339 | -9/Scraptown | Visited UFD Registry 3339 | -9/Scraptown | Registered with UFD as "Shortchassis" 3380 | -9/Scraptown | Entered Cyclist Reading Room 3441 | -9/Scraptown | Visited Botcube Research 3460 | -9/Scraptown | Visited Curators Association 3494 | -9/Scraptown | Visited Abandonware Association 3501 | -9/Scraptown | Learned abandonware demo "OVRCLOCK.EXE" 3515 | -9/Scraptown | Learned abandonware demo "REVENGE.EXE" 3515 | -9/Scraptown | Learned abandonware demo "SHUTEYE.EXE" 3672 | -9/Scraptown | Visited A0-MCA Data Center 3677 | -9/Scraptown | Given an A- rating by A0-MCA 3693 | -9/Scraptown | Visited Supply Room 3716 | -9/Scraptown | Visited Scrapoid Pod Storage 3732 | -9/Scraptown | Visited Scrap Suit Storage 3750 | -9/Scraptown | Visited Chapter 10 3777 | -9/Scraptown | Visited Cartography Club 3856 | -9/Scraptown | Learned location of Warlord (-4) 3856 | -9/Scraptown | Learned location of Hub_04(d) (-6) 3856 | -9/Scraptown | Learned location of Armory (-4) 3856 | -9/Scraptown | Learned location of Testing (-2) 3856 | -9/Scraptown | Learned location of Quarantine (-3) 3856 | -9/Scraptown | Learned 8 Materials zone layouts 3856 | -9/Scraptown | Learned 12 Materials zone layouts 3856 | -9/Scraptown | Learned 24 Factory zone layouts 3856 | -9/Scraptown | Learned 8 Research zone layouts 3856 | -9/Scraptown | Learned 16 Research zone layouts 3856 | -9/Scraptown | Learned 12 Lower Caves zone layouts 3856 | -9/Scraptown | Learned 20 Lower Caves zone layouts 3856 | -9/Scraptown | Learned 24 Upper Caves zone layouts 3856 | -9/Scraptown | Learned 24 Proximity Caves zone layouts 3856 | -9/Scraptown | Learned location of 3 exits from Lower Caves 3856 | -9/Scraptown | Learned location of 1 exit from Upper Caves 3890 | -9/Scraptown | Attached Tower Shield, gained temporary slots: Power, Propulsion x2, Utility x2, Weapon x2 3893 | -9/Scraptown | Attached Flightbrick, gained temporary slots: Utility x3 3943 | -9/Scraptown | Found Scrap Suit 4204 | -9/Scraptown | Found Lrg. Botcube 4293 | -9/Scraptown | Build established: Tank 5171 | -9/Scraptown | Found Scrap Suit 5216 | -9/Scraptown | Found Scrapoid Pod 6050 | -9/Scraptown | Found A0-MCA's Component Scanner 6301 | -9/Scraptown | Lrg. Botcube activated 6335 | -9/Scraptown | Lrg. Botcube completed mutation into wheeled form, armed with 3 guns, 1 cannon. 6554 | -9/Scraptown | Met Optimus 6554 | -9/Scraptown | Accepted into 0bPrime 6650 | -9/Scraptown | Discovered new exit (range 5) 6661 | -9/Scraptown | Entered Factory 6661 | -6/Factory | Accompanied by 3 allies 6661 | -6/Factory | Evolved 8 slots: Propulsion x4, Utility x4 6662 | -6/Factory | Identified exit to Factory 6662 | -6/Factory | Identified exit to Extension 6663 | -6/Factory | Loaded intel: 4 garrison access locations 6797 | -6/Factory | Loaded intel: 8 recycling unit locations 6856 | -6/Factory | Discovered exit to Extension (range 6) 6967 | -6/Factory | Learned location of Protoforge (-3) 7057 | -6/Factory | Found Lrg. Botcube 7078 | -6/Factory | Lrg. Botcube activated 7086 | -6/Factory | Lrg. Botcube completed mutation into wheeled form, armed with 1 cannon. 7117 | -6/Factory | Lost 5 parts (1p2u2w) 7279 | -6/Factory | Build established: Mutant 7341 | -6/Factory | Cargo convoy interrupted 7464 | -6/Factory | Found Lrg. Botcube 7483 | -6/Factory | Lrg. Botcube activated 7507 | -6/Factory | Lrg. Botcube completed mutation into wheeled form, armed with 1 gun, 2 cannons. 7578 | -6/Factory | Found Lrg. Botcube 7618 | -6/Factory | Core integrity fell below 50% 7711 | -6/Factory | First assault squad dispatched 7728 | -6/Factory | Entered Extension 7804 | -6/Extension | Lrg. Botcube activated 7808 | -6/Extension | Lrg. Botcube completed mutation into core form, armed with 1 cannon. 7885 | -6/Extension | Rescued a captive Derelict 8099 | -6/Extension | Loaded intel: 2 recycling unit locations 8119 | -6/Extension | Scraphulk reinforcements arrived 8408 | -6/Extension | Build established: Hacker-Mutant 8428 | -6/Extension | Scrapoid Pod released 06E05-D (x5) 8609 | -6/Extension | Rescued a captive Derelict 8610 | -6/Extension | Rescued a captive Derelict 8705 | -6/Extension | Rescued a captive Derelict 8706 | -6/Extension | Rescued a captive Derelict 8715 | -6/Extension | Rescued A7 8737 | -6/Extension | Spotted B-75 Beast 8739 | -6/Extension | Build established: Scavenger-Mutant 8748 | -6/Extension | Extracted ID and sensor layout for unrecognized location from A7's data core 8752 | -6/Extension | Spotted B-75 Beast 8772 | -6/Extension | Allies destroyed B-75 Beast 8784 | -6/Extension | Allies destroyed B-75 Beast 8798 | -6/Extension | Found Prototype Protection 8798 | -6/Extension | Identified Med. Regenerative Plating 8803 | -6/Extension | Disrupted transfer network 8803 | -6/Extension | Lost 7 allies 8837 | -6/Extension | Discovered exit to Factory (range 3) 8844 | -6/Extension | Entered Factory 8844 | -5/Factory | Accompanied by 3 allies 8844 | -5/Factory | Evolved 2 slots: Utility x2 8981 | -5/Factory | Identified exit to Garrison 9006 | -5/Factory | Entered Garrison 9006 | -5/Garrison | Accompanied by 1 ally 9236 | -5/Garrison | Lost 10 parts (1p1n6u2w) 9254 | -5/Garrison | Triggered checkpoint 9860 | -5/Garrison | Triggered checkpoint 9884 | -5/Garrison | Garrison Relay disabled 9943 | -5/Garrison | Discovered new exit (range 10) 9974 | -5/Garrison | Triggered checkpoint 10008 | -5/Garrison | Triggered checkpoint 10016 | -5/Garrison | Garrison Relay disabled 10318 | -5/Garrison | Triggered checkpoint 10448 | -5/Garrison | Triggered checkpoint 10568 | -5/Garrison | Triggered checkpoint 10617 | -5/Garrison | Learned Factory security intel 10629 | -5/Garrison | Garrison Relay disabled 10653 | -5/Garrison | Spotted B-86 Titan 10658 | -5/Garrison | Discovered new exit (range 10) 10705 | -5/Garrison | Rewired B-90 Cyclops 10707 | -5/Garrison | Allies destroyed B-86 Titan 10735 | -5/Garrison | Rewired B-75 Beast 10738 | -5/Garrison | Lost 6 parts (1p2n1u2w) 10739 | -5/Garrison | Found Hvy. Reflective Plating 11008 | -5/Garrison | Triggered checkpoint 11024 | -5/Garrison | Installed Relay Interface Framework 11155 | -5/Garrison | Discovered new exit (range 8) 11184 | -5/Garrison | Triggered checkpoint 11426 | -5/Garrison | Triggered checkpoint 11668 | -5/Garrison | Entered Factory 11856 | -5/Factory | Identified exit to Garrison 11856 | -5/Factory | Entered Garrison 11870 | -5/Garrison | Triggered checkpoint 11892 | -5/Garrison | System corruption reached 10% 12304 | -5/Garrison | Spotted B-75 Beast 12314 | -5/Garrison | Triggered checkpoint 12341 | -5/Garrison | Core integrity fell below 50% 12363 | -5/Garrison | Destroyed B-75 Beast 12390 | -5/Garrison | Lost 4 parts (2u2w) 12449 | -5/Garrison | Discovered new exit (range 10) 12472 | -5/Garrison | Triggered checkpoint 12599 | -5/Garrison | Core integrity fell below 20% 12630 | -5/Garrison | Triggered checkpoint 12630 | -5/Garrison | Lost 16 parts (1p5n7u3w) 12650 | -5/Garrison | Triggered checkpoint 12655 | -5/Garrison | Destroyed by X-77 Beamer with Gatling Laser Last Messages --------------- 12580_ Penetrated by Slug. 12580_ Imp. Heat Sink destroyed. 12580_ Penetrated by Slug. 12580_ Adv. Heat Sink destroyed. 12581_ Penetrated by Slug. 12581_ Rnf. Fission Core destroyed. 12591_ W-25 Informer sends out distress signal. 12597_ Adv. Heat Sink destroyed. 12598_ Slug penetrates Wall. 12599_ Adv. Heat Sink destroyed. 12600_ Wall collapses. 12605_ DV5>WRXV4EO= GYY6TE|NTO4PEZ/UZ 12621_ 7WRCAYZ